[Event "56th Rubinstein Memorial A 2020"]
[Site "Polanica Zdroj"]
[Date "2020.08.23"]
[Round "9.8"]
[White "Poltorak, Sebastian"]
[Black "Sernecki, Franciszek"]
[Result "1/2-1/2"]
[ECO "E33"]
[WhiteElo "1974"]
[BlackElo "2243"]
[Annotator "ChessBase"]
[PlyCount "96"]
[EventDate "2020.08.15"]
[EventType "swiss"]
[EventCountry "POL"]
[SourceTitle "playchess.com"]
[Source "ChessBase"]
[SourceQuality "1"]
[TimeControl "40/5400+30:1800+30"]

1. d4 {[%emt 0:00:00]} Nf6 {[%emt 0:00:01]} 2. c4 {[%emt 0:00:00]} e6 {[%emt 0:00:03]} 3. Nc3 {[%emt 0:00:00]} Bb4 {[%emt 0:00:43]} 4. Qc2 {[%emt 0:00:00]} Nc6 {[%emt 0:00:04]} 5. Nf3 {[%emt 0:00:00]} d6 {[%emt 0:00:16]} 6. a3 {[%emt 0:00:00]} Bxc3+ {[%emt 0:00:41]} 7. Qxc3 {[%emt 0:00:03]} O-O {[%emt 0:00:23]} 8. b4 {[%emt 0:00:08]} e5 {[%emt 0:01:31]} 9. dxe5 {[%emt 0:00:08]} Nxe5 {[%emt 0:07:48]} 10. Nxe5 {[%emt 0:00:14]} dxe5 {[%emt 0:00:08]} 11. Bb2 {[%emt 0:00:06]} Re8 {[%emt 0:06:26]} 12. Rd1 {[%emt 0:00:19]} Qe7 {[%emt 0:00:46]} 13. e3 {[%emt 0:00:13]} Bd7 {[%emt 0:08:06]} 14. Be2 {[%emt 0:01:52]} Ba4 {[%emt 0:11:17]} 15. Rd3 {[%emt 0:03:45]} a5 {[%emt 0:06:20]} 16. O-O {[%emt 0:04:37]} Ra6 {[%emt 0:13:20]} 17. b5 {[%emt 0:08:43]} Raa8 {[%emt 0:03:40]} 18. Bd1 {[%emt 0:01:41]} Ne4 {[%emt 0:06:33]} 19. Qc1 {[%emt 0:00:57]} Bxd1 {[%emt 0:01:52]} 20. Rfxd1 {[%emt 0:05:57]} Nc5 {[%emt 0:05:04]} 21. Rd5 {[%emt 0:00:06]} f6 {[%emt 0:01:06]} 22. a4 {[%emt 0:07:03]} c6 {[%emt 0:02:00]} 23. bxc6 {[%emt 0:03:46]} bxc6 {[%emt 0:01:09]} 24. Rd6 {[%emt 0:00:05]} Rad8 {[%emt 0:01:23]} 25. Rxd8 {[%emt 0:00:09]} Rxd8 {[%emt 0:00:03]} 26. Ba3 {[%emt 0:00:24]} Rxd1+ {[%emt 0:00:38]} 27. Qxd1 {[%emt 0:00:01]} Qd7 {[%emt 0:00:15]} 28. Qc2 {[%emt 0:04:41]} Qd3 {[%emt 0:07:58]} 29. Qxd3 {[%emt 0:00:34]} Nxd3 {[%emt 0:00:06]} 30. e4 {[%emt 0:01:43]} Kf7 {[%emt 0:09:05]} 31. Kf1 {[%emt 0:00:18]} Ke6 {[%emt 0:01:49]} 32. g3 {[%emt 0:00:59]} Nb4 {[%emt 0:02:04]} 33. Bxb4 {[%emt 0:16:30]} axb4 {[%emt 0:00:05]} 34. Ke2 {[%emt 0:00:04]} c5 {[%emt 0:00:26]} 35. g4 {[%emt 0:01:55]} Kd6 {[%emt 0:01:37]} 36. Kd2 {[%emt 0:00:05]} Kc6 {[%emt 0:00:43]} 37. Kc2 {[%emt 0:00:05]} Kb6 {[%emt 0:00:04]} 38. Kb2 {[%emt 0:00:04]} Ka6 {[%emt 0:00:29]} 39. Ka2 {[%emt 0:00:05]} Kb7 {[%emt 0:01:48]} 40. Kb2 {[%emt 0:00:00]} Kb6 {[%emt 0:00:00]} 41. Ka2 {[%emt 0:00:09]} Ka5 {[%emt 0:01:38]} 42. Kb3 {[%emt 0:00:07]} g6 {[%emt 0:01:44]} 43. h4 {[%emt 0:00:11]} h6 {[%emt 0:00:41]} 44. h5 {[%emt 0:00:06]} g5 {[%emt 0:01:02]} 45. f3 {[%emt 0:00:05]} Ka6 {[%emt 0:00:10]} 46. Kb2 {[%emt 0:00:06]} Kb6 {[%emt 0:00:03]} 47. Ka2 {[%emt 0:00:05]} Ka5 {[%emt 0:00:09]} 48. Kb3 {[%emt 0:00:05]} Ka6 {[%emt 0:00:04]} 1/2-1/2

[Event "56th Rubinstein Memorial A 2020"]
[Site "Polanica Zdroj"]
[Date "2020.08.23"]
[Round "9.9"]
[White "Bronowicki, Mateusz"]
[Black "Praczukowski, Stanislaw"]
[Result "1/2-1/2"]
[ECO "A45"]
[WhiteElo "2275"]
[BlackElo "2132"]
[Annotator "ChessBase"]
[PlyCount "37"]
[EventDate "2020.08.15"]
[EventType "swiss"]
[EventCountry "POL"]
[SourceTitle "playchess.com"]
[Source "ChessBase"]
[SourceQuality "1"]
[TimeControl "40/5400+30:1800+30"]

1. d4 {[%emt 0:00:00]} Nf6 {[%emt 0:00:00]} 2. Bg5 {[%emt 0:00:12]} c5 {[%emt 0:00:11]} 3. d5 {[%emt 0:01:34]} Ne4 {[%emt 0:01:16]} 4. h4 {[%emt 0:03:08]} Qa5+ {[%emt 0:07:14]} 5. c3 {[%emt 0:06:37]} d6 {[%emt 0:07:22]} 6. Nd2 {[%emt 0:01:11]} Nxd2 {[%emt 0:10:17]} 7. Qxd2 {[%emt 0:01:10]} e5 {[%emt 0:04:33]} 8. e4 {[%emt 0:16:44]} h6 {[%emt 0:03:22]} 9. Be3 {[%emt 0:00:46]} Be7 {[%emt 0:00:18]} 10. a4 {[%emt 0:15:37]} Qd8 {[%emt 0:06:19]} 11. g3 {[%emt 0:03:26]} O-O {[%emt 0:01:41]} 12. Bd3 {[%emt 0:03:13]} Na6 {[%emt 0:09:27]} 13. b4 {[%emt 0:05:50]} b6 {[%emt 0:09:13]} 14. g4 {[%emt 0:09:21]} cxb4 {[%emt 0:05:51]} 15. cxb4 {[%emt 0:00:51]} Nb8 {[%emt 0:03:44]} 16. g5 {[%emt 0:06:26]} h5 {[%emt 0:00:30]} 17. Ne2 {[%emt 0:00:48]} a5 {[%emt 0:00:32]} 18. f4 {[%emt 0:08:53]} exf4 {[%emt 0:04:54]} 19. Bxf4 {[%emt 0:01:39]} 1/2-1/2

[Event "56th Rubinstein Memorial A 2020"]
[Site "Polanica Zdroj"]
[Date "2020.08.23"]
[Round "9.10"]
[White "Kowalczyk, Rafal"]
[Black "Golecki, Jan"]
[Result "1-0"]
[ECO "D36"]
[WhiteElo "2268"]
[BlackElo "2106"]
[Annotator "ChessBase"]
[PlyCount "62"]
[EventDate "2020.08.15"]
[EventType "swiss"]
[EventCountry "POL"]
[SourceTitle "playchess.com"]
[Source "ChessBase"]
[SourceQuality "1"]
[TimeControl "40/5400+30:1800+30"]

1. d4 {[%emt 0:00:00]} d5 {[%emt 0:00:00]} 2. c4 {[%emt 0:00:09]} e6 {[%emt 0:00:00]} 3. Nc3 {[%emt 0:00:11]} Nf6 {[%emt 0:00:00]} 4. cxd5 {[%emt 0:00:07]} exd5 {[%emt 0:00:00]} 5. Bg5 {[%emt 0:00:10]} c6 {[%emt 0:00:22]} 6. Qc2 {[%emt 0:00:12]} Be6 {[%emt 0:01:32]} 7. e3 {[%emt 0:00:11]} Bd6 {[%emt 0:00:24]} 8. Bd3 {[%emt 0:00:14]} h6 {[%emt 0:01:41]} 9. Bh4 {[%emt 0:00:43]} Nbd7 {[%emt 0:00:58]} 10. Nge2 {[%emt 0:05:07]} Qc7 {[%emt 0:04:00]} 11. Bg3 {[%emt 0:01:21]} a6 {[%emt 0:07:04]} 12. a4 {[%emt 0:10:29]} Nh5 {[%emt 0:04:50]} 13. Bxd6 {[%emt 0:01:06]} Qxd6 {[%emt 0:00:05]} 14. a5 {[%emt 0:00:24]} O-O {[%emt 0:06:42]} 15. O-O {[%emt 0:01:05]} f5 {[%emt 0:03:16]} 16. Rae1 {[%emt 0:22:59]} g6 {[%emt 0:12:19]} 17. f3 {[%emt 0:08:03]} Qb4 {[%emt 0:09:59]} 18. g4 {[%emt 0:02:39]} Ng7 {[%emt 0:20:09]} 19. Nf4 {[%emt 0:01:27]} Bf7 {[%emt 0:01:11]} 20. gxf5 {[%emt 0:00:32]} g5 {[%emt 0:00:15]} 21. Nfe2 {[%emt 0:03:03]} Qxa5 {[%emt 0:02:22]} 22. h4 {[%emt 0:06:45]} Rae8 {[%emt 0:00:43]} 23. hxg5 {[%emt 0:00:28]} hxg5 {[%emt 0:00:45]} 24. Kf2 {[%emt 0:02:44]} c5 {[%emt 0:04:15]} 25. Qd2 {[%emt 0:04:20]} Qb6 {[%emt 0:09:01]} 26. Rh1 {[%emt 0:07:39]} Qf6 {[%emt 0:00:07]} 27. Reg1 {[%emt 0:00:24]} Bh5 {[%emt 0:03:01]} 28. Nxd5 {[%emt 0:00:50]} Qd8 {[%emt 0:03:47]} 29. e4 {[%emt 0:02:10]} cxd4 {[%emt 0:00:12]} 30. Rxg5 {[%emt 0:00:24]} Bxf3 {[%emt 0:00:29]} 31. Rxg7+ {[%emt 0:00:14]} Kxg7 {[%emt 0:00:12]} 1-0

[Event "56th Rubinstein Memorial A 2020"]
[Site "Polanica Zdroj"]
[Date "2020.08.23"]
[Round "9.11"]
[White "Rog, Bartlomiej"]
[Black "Chomczyk, Marek"]
[Result "1-0"]
[ECO "C00"]
[WhiteElo "1866"]
[BlackElo "2221"]
[Annotator "ChessBase"]
[PlyCount "115"]
[EventDate "2020.08.15"]
[EventType "swiss"]
[EventCountry "POL"]
[SourceTitle "playchess.com"]
[Source "ChessBase"]
[SourceQuality "1"]
[TimeControl "40/5400+30:1800+30"]

1. e4 {[%emt 0:00:00]} e6 {[%emt 0:00:00]} 2. d3 {[%emt 0:00:07]} d5 {[%emt 0:00:00]} 3. Nd2 {[%emt 0:00:09]} c5 {[%emt 0:00:10]} 4. Ngf3 {[%emt 0:00:11]} Nc6 {[%emt 0:00:08]} 5. g3 {[%emt 0:00:11]} g6 {[%emt 0:00:10]} 6. Bg2 {[%emt 0:00:12]} Bg7 {[%emt 0:00:03]} 7. O-O {[%emt 0:00:12]} Nge7 {[%emt 0:00:16]} 8. Re1 {[%emt 0:00:12]} O-O {[%emt 0:00:17]} 9. e5 {[%emt 0:00:22]} f6 {[%emt 0:02:33]} 10. exf6 {[%emt 0:00:19]} Bxf6 {[%emt 0:01:53]} 11. c4 {[%emt 0:05:40]} Nf5 {[%emt 0:00:05]} 12. Nb3 {[%emt 0:03:48]} b6 {[%emt 0:02:51]} 13. Rb1 {[%emt 0:02:54]} a5 {[%emt 0:00:55]} 14. a4 {[%emt 0:04:15]} Ra7 {[%emt 0:01:08]} 15. Bf4 {[%emt 0:03:48]} Raf7 {[%emt 0:00:58]} 16. Ne5 {[%emt 0:11:27]} Nxe5 {[%emt 0:01:14]} 17. Bxe5 {[%emt 0:03:13]} Bxe5 {[%emt 0:02:38]} 18. Rxe5 {[%emt 0:00:15]} dxc4 {[%emt 0:00:41]} 19. dxc4 {[%emt 0:00:16]} Ba6 {[%emt 0:00:33]} 20. Qxd8 {[%emt 0:02:59]} Rxd8 {[%emt 0:00:03]} 21. Rxe6 {[%emt 0:00:41]} Bxc4 {[%emt 0:06:54]} 22. Rxb6 {[%emt 0:00:25]} Bxb3 {[%emt 0:00:05]} 23. Rxb3 {[%emt 0:00:14]} Rd2 {[%emt 0:00:03]} 24. Rb7 {[%emt 0:28:52]} Nd4 {[%emt 0:01:37]} 25. Rxf7 {[%emt 0:05:04]} Kxf7 {[%emt 0:00:11]} 26. Kf1 {[%emt 0:03:27]} Ke6 {[%emt 0:01:07]} 27. Ke1 {[%emt 0:04:56]} Rc2 {[%emt 0:02:25]} 28. Kf1 {[%emt 0:01:32]} Kd6 {[%emt 0:02:18]} 29. Be4 {[%emt 0:00:55]} Rd2 {[%emt 0:00:07]} 30. h4 {[%emt 0:00:38]} c4 {[%emt 0:00:12]} 31. h5 {[%emt 0:04:40]} gxh5 {[%emt 0:04:11]} 32. Bxh7 {[%emt 0:00:01]} Kc5 {[%emt 0:00:47]} 33. Bg6 {[%emt 0:06:01]} Kb4 {[%emt 0:00:12]} 34. Bxh5 {[%emt 0:00:27]} Kxa4 {[%emt 0:03:09]} 35. Bd1+ {[%emt 0:03:18]} Kb4 {[%emt 0:00:27]} 36. Ke1 {[%emt 0:00:01]} Rd3 {[%emt 0:00:32]} 37. Rc1 {[%emt 0:01:44]} Ne6 {[%emt 0:05:24]} 38. Be2 {[%emt 0:00:02]} Rd4 {[%emt 0:00:02]} 39. Rc3 {[%emt 0:00:42]} Nc5 {[%emt 0:01:00]} 40. f4 {[%emt 0:00:00]} Ne4 {[%emt 0:00:00]} 41. Rf3 {[%emt 0:06:29]} a4 {[%emt 0:14:59]} 42. f5 {[%emt 0:05:47]} Nf6 {[%emt 0:01:02]} 43. Bd1 {[%emt 0:01:40]} Rd8 {[%emt 0:03:23]} 44. Ra3 {[%emt 0:01:27]} Re8+ {[%emt 0:02:23]} 45. Kf1 {[%emt 0:02:00]} Re5 {[%emt 0:00:14]} 46. Rxa4+ {[%emt 0:07:11]} Kb5 {[%emt 0:00:06]} 47. Bc2 {[%emt 0:00:17]} Nd5 {[%emt 0:00:51]} 48. Ra3 {[%emt 0:01:46]} Ne3+ {[%emt 0:00:49]} 49. Rxe3 {[%emt 0:00:01]} Rxe3 {[%emt 0:00:05]} 50. Kf2 {[%emt 0:00:16]} Re8 {[%emt 0:00:05]} 51. g4 {[%emt 0:00:27]} Kc5 {[%emt 0:00:04]} 52. f6 {[%emt 0:01:13]} Kd6 {[%emt 0:00:30]} 53. g5 {[%emt 0:00:46]} Re5 {[%emt 0:01:03]} 54. g6 {[%emt 0:01:34]} Re6 {[%emt 0:07:48]} 55. g7 {[%emt 0:01:11]} Rxf6+ {[%emt 0:00:56]} 56. Kg2 {[%emt 0:00:14]} c3 {[%emt 0:00:44]} 57. bxc3 {[%emt 0:01:24]} Rg6+ {[%emt 0:02:22]} 58. Bxg6 {[%emt 0:00:07]} 1-0

[Event "56th Rubinstein Memorial A 2020"]
[Site "Polanica Zdroj"]
[Date "2020.08.23"]
[Round "9.12"]
[White "Jachym, Adam"]
[Black "Fiedorek, Michal"]
[Result "0-1"]
[ECO "E67"]
[WhiteElo "2042"]
[BlackElo "2212"]
[Annotator "ChessBase"]
[PlyCount "96"]
[EventDate "2020.08.15"]
[EventType "swiss"]
[EventCountry "POL"]
[SourceTitle "playchess.com"]
[Source "ChessBase"]
[SourceQuality "1"]
[TimeControl "40/5400+30:1800+30"]

1. d4 {[%emt 0:00:00]} Nf6 {[%emt 0:00:00]} 2. Nf3 {[%emt 0:00:00]} g6 {[%emt 0:00:00]} 3. g3 {[%emt 0:00:00]} Bg7 {[%emt 0:00:00]} 4. Bg2 {[%emt 0:00:00]} O-O {[%emt 0:00:20]} 5. O-O {[%emt 0:00:10]} d6 {[%emt 0:00:15]} 6. c4 {[%emt 0:03:25]} Nbd7 {[%emt 0:01:45]} 7. Nc3 {[%emt 0:02:52]} e5 {[%emt 0:00:12]} 8. dxe5 {[%emt 0:02:16]} dxe5 {[%emt 0:01:04]} 9. Qc2 {[%emt 0:12:58]} Qe7 {[%emt 0:02:09]} 10. b3 {[%emt 0:04:45]} a5 {[%emt 0:02:33]} 11. e4 {[%emt 0:04:13]} c6 {[%emt 0:02:05]} 12. a4 {[%emt 0:09:28]} Nc5 {[%emt 0:03:35]} 13. Ba3 {[%emt 0:00:18]} Re8 {[%emt 0:06:14]} 14. b4 {[%emt 0:03:47]} axb4 {[%emt 0:01:16]} 15. Bxb4 {[%emt 0:00:10]} Bf8 {[%emt 0:01:16]} 16. Rfd1 {[%emt 0:13:29]} Bg4 {[%emt 0:07:45]} 17. Rab1 {[%emt 0:10:16]} Qc7 {[%emt 0:08:20]} 18. h3 {[%emt 0:03:27]} Bxf3 {[%emt 0:00:52]} 19. Bxf3 {[%emt 0:00:07]} Ne6 {[%emt 0:01:17]} 20. Bxf8 {[%emt 0:04:01]} Rxf8 {[%emt 0:04:28]} 21. Bg2 {[%emt 0:01:28]} Nd7 {[%emt 0:04:26]} 22. h4 {[%emt 0:02:39]} h5 {[%emt 0:05:58]} 23. Kh2 {[%emt 0:04:50]} Ndc5 {[%emt 0:02:09]} 24. Ra1 {[%emt 0:04:15]} Rfd8 {[%emt 0:02:36]} 25. Rxd8+ {[%emt 0:00:52]} Rxd8 {[%emt 0:02:01]} 26. Rd1 {[%emt 0:01:44]} Nd4 {[%emt 0:04:28]} 27. Qc1 {[%emt 0:00:35]} Nde6 {[%emt 0:04:14]} 28. Rxd8+ {[%emt 0:05:48]} Qxd8 {[%emt 0:00:17]} 29. Qe3 {[%emt 0:05:08]} Qd4 {[%emt 0:06:19]} 30. Bf1 {[%emt 0:00:10]} Qxe3 {[%emt 0:02:17]} 31. fxe3 {[%emt 0:00:07]} Kf8 {[%emt 0:00:37]} 32. Kh3 {[%emt 0:00:45]} Nb3 {[%emt 0:03:26]} 33. g4 {[%emt 0:01:39]} hxg4+ {[%emt 0:00:54]} 34. Kxg4 {[%emt 0:00:06]} Nd2 {[%emt 0:00:57]} 35. Be2 {[%emt 0:00:54]} Nc5 {[%emt 0:03:17]} 36. h5 {[%emt 0:00:36]} gxh5+ {[%emt 0:00:24]} 37. Kf5 {[%emt 0:00:34]} h4 {[%emt 0:03:17]} 38. Kxe5 {[%emt 0:00:23]} h3 {[%emt 0:05:56]} 39. Nd1 {[%emt 0:00:23]} Ncxe4 {[%emt 0:03:58]} 40. Bf3 {[%emt 0:00:00]} Nc3 {[%emt 0:00:00]} 41. Bg4 {[%emt 0:07:10]} Nxd1 {[%emt 0:03:46]} 42. Bxh3 {[%emt 0:00:09]} Nxc4+ {[%emt 0:02:38]} 43. Kd4 {[%emt 0:00:34]} Ndxe3 {[%emt 0:00:23]} 44. a5 {[%emt 0:01:23]} Ke7 {[%emt 0:05:08]} 45. Bc8 {[%emt 0:00:23]} Kd6 {[%emt 0:00:37]} 46. a6 {[%emt 0:02:43]} bxa6 {[%emt 0:00:36]} 47. Bxa6 {[%emt 0:00:07]} c5+ {[%emt 0:00:22]} 48. Ke4 {[%emt 0:00:26]} f5+ {[%emt 0:00:15]} 0-1

[Event "56th Rubinstein Memorial A 2020"]
[Site "Polanica Zdroj"]
[Date "2020.08.23"]
[Round "9.13"]
[White "Jaskolka, Tomasz"]
[Black "Kazmierowski, Tymon"]
[Result "1-0"]
[ECO "A46"]
[WhiteElo "2196"]
[BlackElo "1844"]
[Annotator "NA"]
[PlyCount "95"]
[EventDate "2020.08.15"]
[EventType "swiss"]
[EventCountry "POL"]
[SourceTitle "playchess.com"]
[Source "ChessBase"]
[SourceQuality "1"]
[TimeControl "40/5400+30:1800+30"]

1. d4 {[%emt 0:00:00]} Nf6 {[%emt 0:00:00]} 2. e3 {[%emt 0:01:48]} e6 {[%emt 0:00:06]} 3. Nf3 {[%emt 0:00:05]} b6 {[%emt 0:00:15]} 4. Bd3 {[%emt 0:00:03]} d5 {[%emt 0:00:48]} 5. O-O {[%emt 0:00:26]} Bd6 {[%emt 0:00:18]} 6. b3 {[%emt 0:00:11]} O-O {[%emt 0:00:05]} 7. Bb2 {[%emt 0:00:04]} Bb7 {[%emt 0:00:05]} 8. Ne5 {[%emt 0:00:36]} c5 {[%emt 0:00:33]} 9. Nd2 {[%emt 0:03:25]} Nc6 {[%emt 0:00:12]} 10. a3 {[%emt 0:00:23]} Ne7 {[%emt 0:07:24]} 11. Qf3 {[%emt 0:08:15]} Qc7 {[%emt 0:01:51]} 12. Qh3 {[%emt 0:00:31]} g6 {[%emt 0:05:59] [#]} (12... Ne4 $11) 13. Ndf3 {[%emt 0:13:57]} (13. Nef3 $1 $16 cxd4 14. Nxd4) 13... cxd4 {[%emt 0:12:15]} 14. Bxd4 {[%emt 0:00:33]} Nf5 15. Bb2 {[%emt 0:06:02]} d4 {[%emt 0:23:02]} (15... Ne4 $5 {[%cal Rf7f6]} 16. g4 f6 17. gxf5 exf5 $11) 16. exd4 $11 {[%emt 0:21:34]} (16. Bxf5 $5 exf5 17. Nc4 $14) 16... Nh5 $1 {[%emt 0:03:04]} 17. Qg4 {[%emt 0:21:49]} Nf6 {[%emt 0:05:37]} 18. Qg5 {[%emt 0:01:18]} h6 {[%emt 0:00:23]} 19. Qd2 {[%emt 0:02:16]} Kh7 {[%emt 0:04:50]} 20. Rfe1 {[%emt 0:03:55]} Rad8 {[%emt 0:04:40]} 21. Qf4 {[%emt 0:07:39]} Nh5 {[%emt 0:01:25]} 22. Qg4 {[%emt 0:00:36]} Nf6 23. Qf4 Nh5 {[%emt 0:02:35]} 24. Qg4 {[%emt 0:00:12]} Nf6 {[%emt 0:00:35]} 25. Qh3 {[%emt 0:00:13]} Nh5 {[%emt 0:00:57]} 26. Bc1 {[%emt 0:02:05]} Bxf3 {[%emt 0:08:47]} 27. Nxf3 {[%emt 0:01:32]} Bf4 {[%emt 0:00:33]} 28. g4 {[%emt 0:01:26]} Bxc1 {[%emt 0:00:47]} 29. gxf5 {[%emt 0:01:09]} Nf4 {[%emt 0:01:30]} 30. fxg6+ {[%emt 0:00:44]} fxg6 {[%emt 0:00:09]} 31. Ng5+ {[%emt 0:01:24]} Kg8 {[%emt 0:01:07]} 32. Qxh6 {[%emt 0:00:24]} Nh3+ {[%emt 0:00:34]} 33. Qxh3 {[%emt 0:00:09]} Bxg5 {[%emt 0:00:07]} 34. Qxe6+ {[%emt 0:00:29]} Qf7 {[%emt 0:00:04]} 35. Bc4 {[%emt 0:01:01]} Qxe6 {[%emt 0:00:20]} 36. Bxe6+ {[%emt 0:00:07]} Kg7 {[%emt 0:00:10]} 37. d5 {[%emt 0:00:23]} Bd2 {[%emt 0:00:08]} 38. Re2 {[%emt 0:00:17]} Bc3 {[%emt 0:00:05]} 39. Rd1 {[%emt 0:00:05]} Rf6 {[%emt 0:00:09]} 40. Rd3 {[%emt 0:00:00]} Bb2 {[%emt 0:00:00]} 41. b4 {[%emt 0:00:40]} Bc1 {[%emt 0:00:27]} 42. c4 {[%emt 0:00:16]} Bg5 {[%emt 0:00:57]} 43. c5 {[%emt 0:00:15]} bxc5 {[%emt 0:00:02]} 44. bxc5 {[%emt 0:00:08]} Bh4 {[%emt 0:00:03]} 45. c6 {[%emt 0:01:07]} Bxf2+ {[%emt 0:00:17]} 46. Rxf2 {[%emt 0:00:14]} Rxe6 {[%emt 0:00:04]} 47. dxe6 {[%emt 0:00:20]} Rxd3 {[%emt 0:00:10]} 48. c7 {[%emt 0:00:12]} 1-0

[Event "56th Rubinstein Memorial A 2020"]
[Site "Polanica Zdroj"]
[Date "2020.08.23"]
[Round "9.14"]
[White "Wisniewski, Michal"]
[Black "Vanduyfhuys, Daria"]
[Result "1-0"]
[ECO "A00"]
[WhiteElo "2127"]
[BlackElo "1985"]
[Annotator "NA"]
[PlyCount "53"]
[EventDate "2020.08.15"]
[EventType "swiss"]
[EventCountry "POL"]
[SourceTitle "playchess.com"]
[Source "ChessBase"]
[SourceQuality "1"]
[TimeControl "40/5400+30:1800+30"]

{[%evp 8,28,-28,-30,-23,-20,-22,-33,-29,-46,-40,-47,-32,-37,0,-18,0,-74,0,32767,35,31,87]} 1. g4 {[%emt 0:23:52]} d5 {[%emt 0:00:35]} 2. Bg2 {[%emt 0:00:04]} h6 {[%emt 0:03:16]} 3. h3 {[%emt 0:01:26]} Nf6 {[%emt 0:00:18]} 4. e3 {[%emt 0:00:37]} c5 {[%emt 0:03:29]} 5. b3 {[%emt 0:00:08]} g6 {[%emt 0:01:08]} 6. Bb2 {[%emt 0:00:05]} Bg7 {[%emt 0:00:07]} 7. d3 {[%emt 0:00:27]} Nc6 {[%emt 0:00:47]} 8. Ne2 {[%emt 0:00:25]} O-O {[%emt 0:01:49]} 9. Nd2 {[%emt 0:00:04]} Re8 {[%emt 0:04:32]} 10. O-O {[%emt 0:02:37]} Qd6 {[%emt 0:04:30]} 11. Ng3 {[%emt 0:03:05]} b6 {[%emt 0:06:05]} 12. f4 {[%emt 0:06:27] [#]} (12. c4 $11 {remains equal.}) 12... Bb7 {[%emt 0:15:32]} (12... Nxg4 $1 $17 13. Bxg7 Nxe3 {[%mdl 64] Double Attack}) 13. Qf3 {[%emt 0:04:51]} Nb4 {[%emt 0:12:51]} 14. g5 {[%emt 0:02:32]} Ne4 $16 {[%emt 0:12:32]} 15. dxe4 {[%emt 0:05:44]} Bxb2 {[%emt 0:00:07]} 16. e5 {[%emt 0:00:02]} Qc7 {[%emt 0:00:30]} 17. e6 {[%emt 0:03:24]} Bxa1 {[%emt 0:10:58]} 18. exf7+ {[%emt 0:05:00]} Kxf7 {[%emt 0:00:04]} 19. f5 {[%emt 0:00:07]} Kg8 {[%emt 0:00:31]} 20. gxh6 {[%emt 0:04:25]} Be5 {[%emt 0:17:41]} 21. fxg6 {[%emt 0:00:13]} Rf8 {[%emt 0:01:23]} 22. h7+ {[%emt 0:00:01]} Kg7 {[%emt 0:00:10]} 23. h8=Q+ {[%emt 0:00:08]} Rxh8 {[%emt 0:00:35]} 24. Qf7+ {[%emt 0:00:04]} Kh6 {[%emt 0:00:03]} 25. Nf5+ {[%emt 0:00:02]} Kg5 {[%emt 0:00:57]} 26. Nf3+ {[%emt 0:00:03]} Kh5 {[%emt 0:00:09]} 27. g7# 1-0

[Event "56th Rubinstein Memorial A 2020"]
[Site "Polanica Zdroj"]
[Date "2020.08.23"]
[Round "9.15"]
[White "Czarniecka, Aleksandra"]
[Black "Balinski, Damian"]
[Result "0-1"]
[ECO "B09"]
[WhiteElo "2043"]
[BlackElo "2136"]
[Annotator "NA"]
[PlyCount "64"]
[EventDate "2020.08.15"]
[EventType "swiss"]
[EventCountry "POL"]
[SourceTitle "playchess.com"]
[Source "ChessBase"]
[SourceQuality "1"]
[TimeControl "40/5400+30:1800+30"]

1. e4 {[%emt 0:00:00]} d6 {[%emt 0:00:00]} 2. d4 {[%emt 0:00:00]} Nf6 {[%emt 0:00:00]} 3. Nc3 {[%emt 0:00:00]} g6 {[%emt 0:00:00]} 4. f4 {[%emt 0:00:13]} Bg7 {[%emt 0:00:00]} 5. Nf3 {[%emt 0:00:22]} O-O {[%emt 0:00:00]} 6. Bd3 {[%emt 0:00:46]} Nc6 {[%emt 0:00:00]} 7. e5 {[%emt 0:00:20]} dxe5 {[%emt 0:00:00]} 8. fxe5 {[%emt 0:00:08]} Nh5 {[%emt 0:00:15]} 9. Be3 {[%emt 0:00:23]} f6 {[%emt 0:00:20] B09: Pirc Defence: Austrian Attack.} 10. exf6 {[%emt 0:00:09]} Nxf6 {[%emt 0:00:05] was the old line (10...exf6).} 11. Qe2 {[%emt 0:01:17]} Ng4 {[%emt 0:00:27]} 12. O-O-O {[%emt 0:00:52]} Nxe3 {[%emt 0:00:07]} 13. Qxe3 {[%emt 0:00:05]} Bg4 {[%emt 0:00:39] [#]} 14. Be2 $146 {[%emt 0:08:31]} ({Predecessor:} 14. Bc4+ Kh8 15. Ng5 Bxd1 16. Rxd1 Qd6 17. Nf7+ Rxf7 18. Bxf7 Rf8 19. Bb3 Nxd4 20. Kb1 {0-1 (20) Aguas Sanmartin,M (2295)-Beliavsky,A (2659) Villarrobledo 2001}) 14... Bxf3 {[%emt 0:31:07]} 15. Bxf3 {[%emt 0:00:51]} Nxd4 {[%emt 0:03:43]} 16. Bxb7 {[%emt 0:08:16]} Rb8 $1 {[%emt 0:01:34]} 17. Bd5+ {[%emt 0:00:07]} e6 {[%emt 0:00:11]} 18. Bxe6+ {[%emt 0:02:59]} Kh8 {[%emt 0:00:03]} 19. Bb3 $1 {[%emt 0:02:02]} Qf6 {[%emt 0:06:20]} 20. Rhe1 {[%emt 0:13:43]} c5 {[%emt 0:11:28]} 21. Kb1 $19 {[%emt 0:19:11]} (21. g3 $11) 21... Nb5 {[%emt 0:07:23]} 22. Kc1 {[%emt 0:15:37]} c4 {[%emt 0:05:27]} 23. Bxc4 {[%emt 0:05:11]} Nxc3 {[%emt 0:00:22]} 24. bxc3 {[%emt 0:00:46]} Qc6 {[%emt 0:10:52]} 25. Bb3 {[%emt 0:05:16]} Bxc3 {[%emt 0:01:16]} 26. Rf1 {[%emt 0:01:03]} Bg7 {[%emt 0:03:10]} 27. Rf3 {[%emt 0:05:09]} a5 {[%emt 0:02:56]} 28. Rdf1 {[%emt 0:01:01]} Rxf3 {[%emt 0:05:38]} 29. Rxf3 {[%emt 0:03:02]} Re8 {[%emt 0:00:10]} 30. Qf4 {[%emt 0:02:22]} Qc5 {[%emt 0:02:12]} 31. Qc4 {[%emt 0:02:13]} Qg1+ {[%emt 0:00:58]} 32. Rf1 {[%emt 0:00:07]} Re1+ {[%emt 0:00:32]} 0-1